bitfinex/quotes_SOLUSD_20250814
["timestamp","ask_amount","ask_price","bid_price","bid_amount"]
[1755175471696,0.14216157,198.2,198.12,68.4]
[1755175471901,0.67,198.19,198.12,68.4]
[1755175472202,0.14216157,198.12,198.09,68.08]
[1755175472369,15.58699342,198.1,198.09,68.08]
[1755175472567,16.25699342,198.1,198.09,68.08]
[1755175473204,17.66160366,198.17,198.09,68.08]
[1755175473205,0.67,198.15,198.09,68.08]
[1755175473408,0.21324235,198.36,198.09,68.08]
[1755175473409,0.67,198.22,198.13,15.44483185]
[1755175473568,15.44483185,198.2,198.13,0.50471912]
[1755175473906,15.44483185,198.22,198.16,15.44483185]
[1755175474090,15.44483185,198.22,198.17,67.72]
[1755175474412,15.50483185,198.25,198.17,67.72]
[1755175474708,15.44483185,198.21,198.17,67.72]
[1755175474912,15.44483185,198.18,198.17,67.72]
[1755175475208,0.73,198.25,198.17,67.72]
[1755175475415,15.44483185,198.23,198.17,67.72]
[1755175475613,15.44483185,198.2,198.17,67.72]
[1755175475815,15.44483185,198.19,198.17,67.72]
[1755175475984,5.10413721,198.25,198.11,0.66]
[1755175475985,15.44483185,198.18,198.11,0.66]
[1755175476184,15.44483185,198.18,197.99,10.0]
[1755175476185,0.06,198.25,198.06,15.132027]
[1755175476494,15.44483185,198.17,198.08,0.66]
[1755175476812,15.44483185,198.19,198.13,15.44483185]
[1755175477002,0.06,198.25,198.13,15.44483185]
[1755175477003,15.44483185,198.2,198.13,15.44483185]
[1755175477201,15.44483185,198.14,198.07,0.66]
[1755175477405,15.44483185,198.11,198.08,67.46]
[1755175477710,15.44483185,198.14,198.09,67.46]
[1755175477882,15.44483185,198.13,198.09,67.46]
[1755175478079,15.44483185,198.12,198.09,67.46]
[1755175478288,0.14216157,198.1,197.98,0.69]
[1755175478517,15.44483185,197.99,197.98,0.03]
[1755175478811,0.14216157,198.02,197.98,0.03]
[1755175478985,15.44483185,197.99,197.98,0.03]
[1755175479389,15.44483185,197.99,197.98,67.47]
[1755175479594,0.14216157,198.02,197.98,67.47]
[1755175479790,15.44483185,197.99,197.98,67.47]
[1755175480126,21.31775355,197.99,197.98,67.47]
[1755175480506,5.05076013,197.99,197.98,67.47]
[1755175480697,20.63775355,197.99,197.98,67.47]
[1755175481016,5.05076013,197.99,197.98,67.47]
[1755175481314,15.44483185,197.99,197.98,67.47]
[1755175481520,0.82216157,197.99,197.98,0.03]
[1755175481720,27.32695712,197.99,197.98,0.03]
[1755175482024,32.37771725,197.99,197.98,0.03]
[1755175482393,16.77178897,197.99,197.98,0.03]
[1755175482707,21.8225491,197.99,197.98,0.03]
[1755175483902,47.8225491,197.99,197.98,0.03]
[1755175484116,0.14216157,197.93,197.85,0.03]
[1755175484328,15.44483185,197.87,197.86,54.02]
[1755175484620,0.14216157,197.91,197.86,54.02]
[1755175485004,4.0795334,198.07,197.98,166.66514064]
[1755175485200,15.44483185,197.99,197.98,166.66514064]
[1755175485989,20.49559198,197.99,197.98,166.66514064]
[1755175486212,20.49559198,197.99,197.98,141.43514064]
[1755175486999,21.22775355,197.99,197.98,141.43514064]
[1755175487199,21.22775355,197.99,197.85,0.03]
[1755175487200,26.0,197.96,197.85,0.03]
[1755175487401,0.14216157,197.86,197.85,58.73]
[1755175487618,15.58699342,197.86,197.85,58.73]
[1755175487823,0.14216157,197.86,197.85,58.73]
[1755175488126,15.58699342,197.86,197.85,58.73]
[1755175488426,20.64107206,197.86,197.85,58.73]
[1755175488594,20.64107206,197.86,197.85,0.03]
[1755175488796,21.23107206,197.86,197.85,0.03]
[1755175488991,20.64107206,197.86,197.85,0.03]
[1755175489221,21.23107206,197.86,197.85,0.03]
[1755175489455,26.14216157,197.84,197.83,0.03]
[1755175489740,26.0,197.91,197.83,0.69]
[1755175489917,5.05177526,197.96,197.84,15.44483185]
[1755175490238,15.44483185,198.03,197.83,0.69]
[1755175490239,15.44483185,197.85,197.83,0.03]
[1755175490443,15.58699342,197.84,197.83,0.03]
[1755175490737,0.14216157,197.8,197.73,36.32]
[1755175491044,0.14216157,197.8,197.71,0.03]
[1755175491045,26.14216157,197.72,197.66,0.03]
[1755175491248,26.0,197.66,197.64,0.03]
[1755175491554,0.64216157,197.71,197.58,15.167985]
[1755175491555,0.14216157,197.64,197.58,15.167985]
[1755175491727,26.0,197.56,197.5,67.46]
[1755175492043,15.44483185,197.56,197.52,0.66]
[1755175492249,26.0,197.57,197.53,0.65]
[1755175492410,15.44483185,197.54,197.49,0.03]
[1755175492737,15.44483185,197.52,197.49,0.03]
[1755175492914,5.06105336,197.59,197.49,0.03]
[1755175493118,26.0,197.56,197.49,0.03]
[1755175493320,26.0,197.56,197.52,0.66]
[1755175493516,41.44483185,197.56,197.49,0.03]
[1755175493841,2.02337,197.71,197.53,0.66]
[1755175494023,26.0,197.66,197.53,0.66]
[1755175494223,5.05970451,197.64,197.53,0.66]
[1755175494418,26.0,197.56,197.53,0.66]
[1755175494622,5.05970451,197.64,197.54,0.66]
[1755175494818,12.85627706,197.69,197.54,0.66]
[1755175494819,15.44483185,197.6,197.54,0.66]
[1755175495021,26.0,197.57,197.54,0.66]
[1755175495219,26.0,197.62,197.56,15.44483185]
[1755175495438,25.5367613,197.84,197.52,0.14216157]
[1755175495439,0.21,197.79,197.61,15.44483185]
[1755175495629,15.44483185,197.67,197.58,0.14216157]
[1755175495834,10.21,197.75,197.58,0.65]
[1755175496029,0.21,197.75,197.58,16.09483185]
[1755175496230,5.05714574,197.74,197.6,15.44483185]
[1755175496425,15.44483185,197.61,197.55,0.14216157]
[1755175496662,5.05535614,197.81,197.61,0.66]
[1755175496942,2.023012,197.75,197.64,0.14216157]
[1755175497248,2.023012,197.75,197.66,0.14216157]
[1755175497443,2.023012,197.75,197.68,0.14216157]
[1755175497645,2.023012,197.75,197.55,0.14216157]
[1755175497825,26.0,197.77,197.6,15.44483185]
[1755175498148,15.44483185,197.64,197.61,1.16604726]
[1755175498331,15.44483185,197.66,197.62,0.66]
[1755175498533,26.0,197.75,197.65,15.44483185]
[1755175498735,15.44483185,197.66,197.55,69.46]
[1755175498925,26.0,197.7,197.61,0.66]
[1755175499126,26.0,197.7,197.64,0.03]
[1755175499326,15.44483185,197.67,197.64,0.69]
[1755175499526,15.44483185,197.65,197.64,0.03]
[1755175499749,26.0,197.74,197.65,0.14216157]
[1755175499949,0.21,197.86,197.69,15.44483185]
[1755175500247,15.44483185,197.71,197.69,0.65]
[1755175500451,0.21,197.91,197.71,0.14216157]
[1755175500747,0.21,197.91,197.7,27.19581689]
[1755175500748,15.44483185,197.86,197.79,15.44483185]
[1755175500928,15.44483185,197.8,197.74,0.69]
[1755175501125,15.44483185,197.75,197.69,36.36]
[1755175501323,15.44483185,197.75,197.65,26.0]
[1755175501324,15.44483185,197.7,197.65,0.50594485]
[1755175501542,15.44483185,197.66,197.64,0.03]
[1755175501731,0.21,197.72,197.64,0.03]
[1755175501958,15.44483185,197.65,197.64,0.03]
[1755175502155,5.0579131,197.71,197.64,0.03]
[1755175502354,26.0,197.66,197.64,0.03]
[1755175502843,26.0,197.72,197.66,0.14216157]
[1755175503026,26.0,197.75,197.64,0.03]
[1755175503227,15.44483185,197.65,197.64,0.03]
[1755175503447,26.0,197.62,197.51,0.03]
[1755175503630,15.44483185,197.52,197.51,0.03]
[1755175504027,26.0,197.62,197.51,0.03]
[1755175504236,20.5076103,197.52,197.51,0.03]
[1755175504451,26.0,197.5,197.43,0.69]
[1755175504647,5.06277845,197.52,197.43,0.69]
[1755175504878,15.44483185,197.5,197.43,0.69]
[1755175505172,15.44483185,197.5,197.4,36.38]
[1755175505352,15.44483185,197.48,197.4,36.38]
[1755175505543,15.44483185,197.48,197.39,69.48]
[1755175506460,33.37814559,197.48,197.27,15.44483185]
[1755175506668,15.44483185,197.29,197.28,0.69]
[1755175507167,15.44483185,197.29,197.23,69.44]
[1755175507372,15.44483185,197.24,197.12,36.38]
[1755175507551,15.44483185,197.16,197.08,15.44483185]
[1755175507879,26.0,197.24,197.13,0.69]
[1755175507880,15.44483185,197.14,197.13,0.69]
[1755175508055,15.44483185,197.15,197.13,0.69]
[1755175508246,20.51736913,197.14,197.05,2.6399997]
[1755175508571,20.51736913,197.14,196.84,4.68909158]
[1755175508572,15.44483185,197.06,197.0,105.5]
[1755175508743,17.75027892,197.18,196.98,2.64497781]
[1755175508744,0.21,197.14,197.01,25.095201]
[1755175508944,10.0,197.22,196.97,15.214139]
[1755175509145,5.06790999,197.32,197.11,15.44483185]
[1755175509377,15.44483185,197.14,197.09,68.9]
[1755175509682,26.0,197.27,197.09,68.9]
[1755175509847,26.0,197.29,197.14,15.44483185]
[1755175510052,17.73768497,197.32,197.16,0.14216157]
[1755175510270,15.44483185,197.17,197.1,15.44483185]
[1755175510467,5.07080205,197.21,197.11,0.31]
[1755175510680,26.0,197.25,197.11,0.31]
[1755175510848,15.44483185,197.15,197.11,0.31]
[1755175511178,15.44483185,197.21,197.12,16.12483185]
[1755175511348,15.44483185,197.16,197.09,68.93]
[1755175511552,5.06893755,197.28,197.1,0.50735667]
[1755175511875,15.44483185,197.14,197.11,0.32]
[1755175512075,26.0,197.22,197.09,68.93]
[1755175512076,15.44483185,197.15,197.09,68.93]
[1755175512297,26.0,197.23,197.09,68.93]
[1755175512468,15.44483185,197.15,197.1,0.67]
[1755175512794,26.0,197.23,197.11,0.68]
[1755175512962,0.21,197.25,197.1,0.32]
[1755175513164,26.0,197.2,197.1,0.32]
[1755175513461,15.50848595,197.11,197.09,68.93]
[1755175513657,15.50848595,197.14,197.09,68.93]
[1755175513860,5.0695485,197.26,197.09,84.43848595]
[1755175514192,5.06431682,197.46,197.13,0.14216157]
[1755175514391,15.50848595,197.3,197.15,5.21429561]
[1755175514567,15.50848595,197.22,197.11,0.50733093]
[1755175514773,0.21,197.36,197.16,0.33]
[1755175514975,0.21,197.36,197.16,15.83848595]
[1755175515180,4.83494783,197.48,197.12,25.87256493]
[1755175515492,2.02506,197.56,197.35,0.14216157]
[1755175515655,15.50848595,197.5,197.37,0.14216157]
[1755175515857,15.50848595,197.45,197.39,0.14216157]
[1755175516059,15.50848595,197.48,197.41,15.50848595]
[1755175516370,17.91059735,197.54,197.4,0.69]
[1755175516685,15.50848595,197.41,197.31,0.34]
[1755175516991,15.50848595,197.33,197.25,67.76]
[1755175517166,26.0,197.38,197.16,36.44]
[1755175517167,26.0,197.31,197.19,15.50848595]
[1755175517371,26.0,197.37,197.24,0.69]
[1755175517568,15.50848595,197.25,197.24,0.69]
[1755175517769,15.50848595,197.25,197.16,104.2]
[1755175517960,15.50848595,197.27,197.2,15.50848595]
[1755175518175,26.0,197.25,197.16,104.2]
[1755175518378,15.50848595,197.34,197.14,0.69]
[1755175518379,26.0,197.21,197.14,0.69]
[1755175518566,15.50848595,197.16,197.09,0.53738241]
[1755175518767,15.50848595,197.14,197.09,0.03]
[1755175518995,0.1,197.22,197.09,0.03]
[1755175519197,26.0,197.21,197.09,15.53848595]
[1755175519366,15.50848595,197.14,197.09,0.03]
[1755175519574,26.0,197.21,197.09,0.03]
[1755175520105,26.0,197.08,196.94,3.33553313]
[1755175520270,15.50848595,197.11,196.83,15.224176]
[1755175520271,5.07768863,196.94,196.83,15.224176]
[1755175520597,26.0,196.92,196.86,0.69]
[1755175520812,26.0,196.92,196.81,0.65]
[1755175520813,41.50848595,196.92,196.81,0.65]
[1755175521107,43.53950995,196.92,196.91,1e-08]
[1755175521262,28.031024,196.92,196.73,0.2]
[1755175521465,28.031024,196.92,196.82,15.50848595]
[1755175521673,28.031024,196.92,196.74,0.54828504]
[1755175521674,28.031024,196.92,196.83,0.04]
[1755175521872,15.50848595,196.91,196.83,15.54848595]
[1755175522098,28.031024,196.92,196.83,0.04]
[1755175522311,0.14216157,197.1,196.91,15.50848595]
[1755175522599,43.12531708,197.1,196.92,0.1]
[1755175522803,15.50848595,196.93,196.92,0.1]
[1755175523004,15.50848595,196.93,196.86,0.69]
[1755175523235,15.50848595,196.87,196.81,0.69]
[1755175523425,15.50848595,196.88,196.82,15.50848595]
[1755175523696,0.35216157,197.0,196.82,0.09]
[1755175523697,26.0,196.9,196.82,0.09]
[1755175523876,10.21,197.05,196.82,0.09]
[1755175524075,15.50848595,196.88,196.82,0.09]
[1755175524277,15.50848595,196.84,196.82,0.09]
[1755175524494,15.50848595,196.85,196.82,0.09]
[1755175524690,5.07930172,196.88,196.77,0.69]
[1755175524992,5.07930172,196.88,196.73,2.84421106]
[1755175524993,5.07930172,196.88,196.78,0.50818172]
[1755175525299,7.92351372,196.88,196.78,0.69]
[1755175525490,15.50848595,196.81,196.74,0.50828504]
[1755175525681,26.0,196.83,196.73,0.89]
[1755175525682,15.50848595,196.8,196.73,0.89]
[1755175525874,26.0,196.85,196.74,68.49]
[1755175526076,2.844212,196.88,196.75,1.19825921]
[1755175526394,31.07778396,196.94,196.79,15.50848595]
[1755175526598,15.50848595,196.83,196.79,0.69]
[1755175526783,5.07778396,196.94,196.8,0.69]
[1755175526988,26.0,196.95,196.8,0.69]
[1755175527199,26.0,196.95,196.8,68.47]
[1755175527521,15.50848595,196.81,196.76,68.28823338]
[1755175527686,15.50848595,196.82,196.77,0.68]
[1755175527882,26.0,196.91,196.78,0.69]
[1755175528080,15.50848595,196.84,196.78,0.69]
[1755175528289,5.083711,196.94,196.83,15.50848595]
[1755175528517,5.083711,196.94,196.92,15.50848595]
[1755175528798,15.50848595,197.05,196.93,16.70628059]
[1755175528998,5.07253728,197.14,196.94,68.51]
[1755175529224,15.50848595,197.09,196.98,0.14216157]
[1755175529543,15.50848595,197.09,196.97,26.0]
[1755175529544,17.75388048,197.14,196.97,0.69]
[1755175530109,5.07253728,197.14,196.98,0.64982732]
[1755175530312,5.06996552,197.24,197.01,0.14216157]
[1755175530543,15.50848595,197.12,197.06,15.50848595]
[1755175530719,2.028861,197.23,197.1,15.50848595]
[1755175530923,15.50848595,197.19,197.11,0.09]
[1755175531117,15.50848595,197.14,197.11,0.09]
[1755175531352,15.50848595,197.16,197.12,0.09]
[1755175531653,0.21,197.21,197.05,52.00848595]
[1755175531815,2.028861,197.23,197.13,15.50848595]
[1755175532016,2.028861,197.23,197.14,0.72]
[1755175532359,2.028861,197.23,197.22,15.50848595]
[1755175532553,15.50848595,197.57,197.22,15.50848595]
[1755175532554,5.26026037,197.33,197.22,0.72]
[1755175532847,5.067816,197.33,197.22,0.72]
[1755175533021,12.63933839,197.42,197.22,0.72]
[1755175533022,5.06662613,197.37,197.23,15.50848595]
[1755175533342,15.50848595,197.41,197.33,15.50848595]
[1755175533524,15.50848595,197.4,197.34,0.72673963]
[1755175533728,5.0645733,197.45,197.27,0.14216157]
[1755175533729,15.50848595,197.35,197.3,0.22]
[1755175534031,17.72600657,197.45,197.31,0.28]
[1755175534555,15.50848595,197.34,197.31,0.28]
[1755175534744,15.50848595,197.35,197.32,0.28]
[1755175534931,17.72690437,197.44,197.34,15.50848595]
[1755175535267,5.06252214,197.53,197.43,15.50848595]
[1755175535548,15.50848595,197.44,197.39,0.72]
[1755175535718,0.21,197.49,197.33,0.72]
[1755175535920,15.50848595,197.37,197.33,0.72]
[1755175536122,0.21,197.49,197.34,0.72]
[1755175536316,5.06559951,197.41,197.35,15.50848595]
[1755175536549,15.50848595,197.42,197.34,16.73522558]
[1755175536763,15.50848595,197.39,197.35,0.72]
[1755175536922,15.50848595,197.36,197.28,0.05]
[1755175537114,15.50848595,197.39,197.29,0.50686806]
[1755175537321,15.50848595,197.39,197.31,15.50848595]
[1755175537540,17.72876164,197.42,197.3,0.05]
[1755175537841,26.0,197.39,197.3,0.05]
[1755175538048,15.50848595,197.35,197.3,0.05]
[1755175538351,25.32064771,197.47,197.32,15.50848595]
[1755175538549,17.72151897,197.5,197.35,15.50848595]
[1755175538733,15.50848595,197.39,197.36,0.72]
[1755175538920,25.31864052,197.49,197.36,0.72]
[1755175539118,26.0,197.46,197.35,0.72]
[1755175539420,25.31864052,197.49,197.31,67.7]
[1755175539421,15.50848595,197.36,197.31,67.7]
[1755175539620,15.50848595,197.34,197.32,0.72]
[1755175539927,15.50848595,197.33,197.23,67.68]
[1755175540135,15.50848595,197.25,197.23,0.72]
[1755175540344,17.73678608,197.33,197.24,0.72]
[1755175540546,15.50848595,197.25,197.24,0.72]
[1755175540729,15.50848595,197.25,197.18,67.66]
[1755175541059,26.0,197.3,197.24,15.50848595]
[1755175541344,15.50848595,197.26,197.23,0.72]
[1755175541547,15.50848595,197.25,197.23,0.72]
[1755175541845,15.50848595,197.24,197.19,0.72]
[1755175542017,26.0,197.3,197.18,67.66]
[1755175542221,15.50848595,197.23,197.18,68.38]
[1755175542451,26.0,197.3,197.04,15.205657]
[1755175542452,15.50848595,197.21,197.04,15.205657]
[1755175542640,15.50848595,197.14,197.13,0.72]
[1755175542844,5.07047966,197.22,197.13,16.73576541]
[1755175543049,5.07047966,197.22,197.15,15.50848595]
[1755175543240,15.50848595,197.27,197.2,15.50848595]
[1755175543434,5.06662613,197.37,197.22,15.50848595]
[1755175543435,15.50848595,197.29,197.22,15.50848595]
[1755175543642,15.50848595,197.23,197.21,0.72]
[1755175543845,26.0,197.2,197.11,0.92]
[1755175544037,0.21,197.22,197.11,0.2]
[1755175544223,15.50848595,197.18,197.12,0.72]
[1755175544419,5.07305194,197.12,197.11,0.2]
[1755175544619,20.58153789,197.12,197.11,0.2]
[1755175544937,17.75568181,197.12,197.05,46.14]
[1755175545125,15.50848595,197.06,197.05,46.14]
[1755175545456,17.75568181,197.12,197.05,46.14]
[1755175545621,15.50848595,197.08,197.05,46.14]
[1755175545964,28.028346,197.17,197.05,46.14]
[1755175545965,2.028346,197.17,197.07,15.50848595]
[1755175546247,15.50848595,197.26,197.13,0.14216157]
[1755175546425,15.50848595,197.26,197.08,11.22740815]
[1755175546426,12.66882447,197.34,197.19,15.50848595]
[1755175546621,0.27,197.41,197.21,0.14216157]
[1755175546867,15.50848595,197.33,197.22,68.14704796]
[1755175547161,5.06690168,197.36,197.23,0.86216157]
[1755175547320,0.27,197.47,197.25,0.14216157]
[1755175547521,5.06431682,197.46,197.3,0.14216157]
[1755175547723,15.50848595,197.35,197.3,0.72]
[1755175547948,2.025983,197.36,197.32,15.50848595]
[1755175548224,5.06403578,197.48,197.36,0.14216157]
[1755175548436,5.06431682,197.46,197.37,37.68666261]
[1755175548756,15.50848595,197.38,197.37,36.46]
[1755175549058,17.72510887,197.46,197.33,16.22848595]
[1755175549259,5.06431682,197.46,197.38,15.50848595]
[1755175549423,10.06,197.54,197.45,15.50848595]
[1755175549424,5.06252214,197.53,197.45,15.50848595]
[1755175549646,5.06252214,197.53,197.46,68.04643168]
[1755175549979,5.122522,197.54,197.47,0.72]
[1755175550150,0.06,197.54,197.53,15.50848595]
[1755175550344,0.06,197.54,197.43,0.14216157]
[1755175550578,0.06,197.54,197.47,67.52]
[1755175550885,0.06,197.54,197.47,68.24]
[1755175551178,15.50848595,197.51,197.47,68.24]
[1755175551374,15.50848595,197.51,197.48,0.72]
[1755175551576,0.06,197.54,197.49,0.72]
[1755175551777,0.06,197.54,197.5,0.72]
[1755175552075,0.06,197.54,197.41,62.46]
[1755175552076,0.06,197.54,197.45,16.22848595]
[1755175552383,0.06,197.54,197.52,15.50848595]
[1755175552565,0.06,197.59,197.54,0.14216157]
[1755175552744,0.06,197.59,197.56,15.50848595]
[1755175552949,0.06,197.59,197.57,0.72]
[1755175553482,15.56848595,197.58,197.47,68.18]
[1755175553652,26.0,197.57,197.47,68.18]
[1755175553856,15.50848595,197.54,197.48,0.50638039]
[1755175554085,0.06,197.58,197.49,0.86216157]
[1755175554251,15.50848595,197.56,197.51,0.14216157]
[1755175554581,0.06,197.58,197.52,0.72]
[1755175554751,0.06,197.58,197.53,0.50625221]
[1755175555083,15.56848595,197.58,197.54,0.72]
[1755175555244,0.06,197.58,197.51,0.72]
[1755175555578,0.06,197.58,197.48,0.50638039]
[1755175555768,26.0,197.46,197.24,10.0]
[1755175555975,15.50848595,197.44,197.38,15.50848595]
[1755175556280,15.50848595,197.44,197.33,0.72]
[1755175556281,15.50848595,197.39,197.33,0.72]
[1755175556448,15.50848595,197.38,197.36,67.38]
[1755175556778,15.50848595,197.4,197.36,68.1]
[1755175557085,43.72690437,197.44,197.36,67.38]
[1755175557268,15.50848595,197.37,197.36,67.38]
[1755175557453,15.50848595,197.37,197.28,0.72]
[1755175557454,15.50848595,197.37,197.28,16.22848595]
[1755175557649,15.50848595,197.32,197.28,0.72]
[1755175557872,15.50848595,197.31,197.29,67.36]
[1755175558063,26.51,197.41,197.29,67.36]
[1755175558443,5.06765316,197.33,197.29,67.36]
[1755175558643,15.50848595,197.31,197.29,67.36]
[1755175558875,5.06585612,197.4,197.3,0.72]
[1755175559077,17.73049644,197.4,197.3,0.72]
[1755175559280,15.50848595,197.32,197.29,67.36]
[1755175559479,15.50848595,197.3,197.25,0.72]
[1755175559780,15.50848595,197.36,197.28,67.34]
[1755175559986,15.50848595,197.37,197.3,15.50848595]
[1755175560282,17.73049644,197.4,197.31,67.32]
[1755175560484,25.31671594,197.5,197.31,67.32]
[1755175560485,10.06,197.58,197.32,1.19679099]
[1755175560650,5.06149719,197.57,197.45,15.50848595]
[1755175560852,15.50848595,197.51,197.46,1.19643168]
[1755175561085,33.22372611,197.57,197.47,67.32]
[1755175561286,33.73372611,197.57,197.47,67.32]
[1755175561459,0.51,197.56,197.36,0.69]
[1755175561655,0.51,197.56,197.32,0.69]
[1755175561656,26.0,197.49,197.32,0.69]
[1755175561855,0.14216157,197.46,197.31,67.3]
[1755175562063,26.0,197.43,197.31,67.3]
[1755175562249,0.51,197.43,197.31,67.3]
[1755175562450,25.22781807,197.7,197.31,67.3]
[1755175562451,5.06559951,197.41,197.31,67.3]
[1755175562668,17.72959829,197.41,197.31,67.3]
[1755175562988,25.98712929,197.62,197.31,67.3]
[1755175562989,0.51,197.54,197.38,15.50848595]
[1755175563153,17.71882751,197.53,197.37,0.69]
[1755175563489,41.50848595,197.38,197.26,0.69]
[1755175563780,15.50848595,197.27,197.2,0.69]
[1755175563959,26.0,197.46,197.26,15.50848595]
[1755175564159,15.50848595,197.35,197.27,0.69]
[1755175564384,18.22882751,197.53,197.35,0.14216157]
[1755175564599,15.50848595,197.45,197.37,15.50848595]
[1755175564897,15.50848595,197.38,197.36,67.28]
[1755175565067,15.50848595,197.43,197.36,67.28]
[1755175565267,18.22882751,197.53,197.37,0.69]
[1755175565487,17.71882751,197.53,197.36,67.28]
[1755175565675,26.0,197.5,197.36,67.97]
[1755175565978,0.51,197.52,197.36,67.28]
[1755175565979,15.50848595,197.37,197.36,67.28]
[1755175566468,15.50848595,197.38,197.37,0.03]
[1755175566674,15.50848595,197.4,197.37,0.03]
[1755175566867,31.06517587,197.43,197.37,0.03]
[1755175567071,5.06431682,197.46,197.37,15.53848595]
[1755175567289,17.72510887,197.46,197.37,0.03]
[1755175567490,15.50848595,197.42,197.37,0.03]
[1755175567816,15.50848595,197.39,197.37,0.03]
[1755175567971,16.01848595,197.38,197.37,1e-08]
[1755175568312,26.0,197.35,197.23,39.28]
[1755175568505,17.72870022,197.42,197.29,15.50848595]
[1755175568799,26.0,197.39,197.23,39.28]
[1755175568983,26.0,197.39,197.28,0.14216157]
[1755175569181,5.06534292,197.42,197.32,0.14216157]
[1755175569395,15.50848595,197.39,197.34,0.14216157]
[1755175569703,0.51,197.39,197.34,67.2]
[1755175569891,26.0,197.39,197.34,67.2]
[1755175570081,26.0,197.39,197.27,0.83216157]
[1755175570082,15.50848595,197.35,197.3,0.50684237]
[1755175570284,0.51,197.4,197.25,15.50848595]
[1755175570482,12.6633573,197.42,197.3,0.14216157]
[1755175570702,15.50848595,197.32,197.25,0.50697084]
[1755175571011,15.50848595,197.26,197.22,67.18]
[1755175571190,15.50848595,197.23,197.22,67.18]
[1755175571500,15.50848595,197.23,197.15,36.46]
[1755175571680,26.51,197.29,197.15,36.46]
[1755175571882,15.50848595,197.23,197.16,15.50848595]
[1755175572086,15.50848595,197.26,197.17,0.50717654]
[1755175572289,15.50848595,197.23,197.16,15.50848595]
[1755175572608,15.50848595,197.17,197.02,30.74722595]
[1755175572814,17.75027892,197.18,197.02,15.23874]
[1755175572815,0.51,197.16,197.02,15.23874]
[1755175572978,10.51,197.16,197.02,15.23874]
[1755175573177,15.50848595,197.04,197.02,0.03]
[1755175573399,0.51,197.16,197.02,0.72]
[1755175573601,2.029169,197.08,197.03,0.69]
[1755175573772,26.0,197.15,197.05,15.50848595]
[1755175573979,15.50848595,197.06,197.02,0.03]
[1755175574307,2.028861,197.14,197.02,0.03]
[1755175574516,15.50848595,197.1,197.02,16.04604863]
[1755175574680,26.0,197.12,197.02,0.03]
[1755175574880,26.0,197.11,197.02,0.03]
[1755175575211,15.50848595,197.03,197.02,0.03]
[1755175575401,26.0,197.01,197.0,0.03]
[1755175575712,26.0,197.01,196.89,0.03]
[1755175575713,26.0,196.99,196.9,25.20626326]
[1755175576003,26.0,196.95,196.9,28.47725763]
[1755175576200,1.92907728,196.94,196.8,25.03503512]
[1755175576403,0.14216157,197.0,196.79,2.64700737]
[1755175576404,0.14216157,196.99,196.79,2.64700737]
[1755175576606,0.66,196.93,196.73,0.2]
[1755175576778,1.41141485,196.92,196.73,10.2]
[1755175576979,0.66,196.91,196.73,10.2]
[1755175577200,0.66,196.91,196.76,15.50848595]
[1755175577410,0.66,196.91,196.77,0.53820755]
[1755175577579,0.66,196.91,196.77,0.03]
[1755175577778,0.14216157,196.9,196.77,0.03]
[1755175577979,0.66,196.89,196.77,0.03]
[1755175578714,1.52384822,196.87,196.77,0.03]
[1755175578894,26.0,196.84,196.78,10.0]
[1755175579082,1.52360317,196.91,196.83,10.0]
[1755175579281,3.80736967,196.99,196.85,0.14216157]
[1755175579482,0.66,196.99,196.9,10.0]
[1755175579691,0.05,197.0,196.96,10.0]
[1755175579924,1.57288338,197.0,196.91,10.0]